Cogmind - Beta 15 @@@ ROGUE MODE // 2025.10.14 @ 08:42:08 Player: Tereza Result: Self-destructed Performance ------------- Evolutions (3) 1500 Regions Visited (8) 1600 Robots Destroyed (172) 860 Value Destroyed (4904) 4904 Prototype IDs (34) 680 Alien Tech Used (0) 0 Bonus (311) 311 TOTAL SCORE: 9855 Bonus ------- High Alert Combat Kills 11 Aligned with FarCom 300 Cogmind --------- Core Integrity 601/700 Matter 130/300 Energy 65/100 System Corruption 0% Temperature Cool (8) Movement Core (1550) Ox30 Location -7/Factory Parts ------- > --- POWER (2) -------- (None) > --- PROPULSION (4) --- Advanced Treads > --- UTILITY (5) ------ Improved Heat Sink Huge Storage Unit Target Analyzer Improved Medium Armor Plating System Shield > --- WEAPON (2) ------- Heavy Particle Gun > --- INVENTORY (25) --- Improved Treads Improved Treads Improved Treads Wheel High-capacity Matter Pod (200) Improved Sensor Array Advanced Terrain Scan Processor Hardened Heavy Armor Plating Graphene Brace Remote Shield Hacking Suite Hacking Suite Heavy Particle Gun Heavy Particle Gun Precision Beam Rifle Heavy Particle Cannon Plasma Cannon Firepult Guided Missile Launcher Improved Datajack Peak State ------------ > --- POWER ------------ Nuclear Core Light Nuclear Core > --- PROPULSION ------- Armored Treads Advanced Treads Armored Huge Wheel > --- UTILITY ---------- Improved Heat Sink Huge Storage Unit Advanced Targeting Computer Shield Generator Drone Bay > --- WEAPON ----------- Heavy Particle Gun Precision Beam Rifle > --- INVENTORY -------- Improved Treads Improved Treads Improved Treads Wheel High-capacity Matter Pod Improved Sensor Array Advanced Terrain Scan Processor Hardened Heavy Armor Plating Graphene Brace Remote Shield Hacking Suite Hacking Suite System Shield Heavy Particle Gun Heavy Particle Gun Heavy Particle Gun Heavy Particle Cannon Plasma Cannon Firepult Improved Grenade Launcher Guided Missile Launcher Improved Datajack [Rating: 51] Favorites ----------- Power Heavy Ion Engine Engine Heavy Ion Engine Power Core Light Nuclear Core Propulsion Light Treads Treads Light Treads Leg Aluminum Leg Wheel Wheel Utility Huge Storage Unit Device Shield Generator Storage Huge Storage Unit Processor Advanced Targeting Computer Hackware System Shield Protection Improved Medium Armor Plating Weapon Improved Medium Laser Energy Gun Improved Medium Laser Energy Cannon Advanced Beam Cannon Ballistic Gun Assault Rifle Launcher Improved Grenade Launcher Special Melee Weapon Datajack Build | -11 -10 -9 -9 -9 -8 -8 -8 -7 ------- Run | Yrd Mat Mat Min Exi Min Mat Sto Fac Slots Evolved 6 | . . 2 . . . 2 . 2 Power 1 | . . . . . . . . 1 Propulsion 2 | . . 1 . . . . . 1 Utility 3 | . . 1 . . . 2 . . Weapon . | . . . . . . . . . Parts Attached 86 | 7 6 18 . . . 31 13 11 Power 9 | 1 1 1 . . . 2 2 2 Engine 4 | 1 1 1 . . . 1 . . Core 5 | . . . . . . 1 2 2 Reactor . | . . . . . . . . . Propulsion 28 | 2 1 8 . . . 10 4 3 Treads 15 | 2 . 3 . . . 6 3 1 Leg 1 | . . 1 . . . . . . Wheel 12 | . 1 4 . . . 4 1 2 Hover . | . . . . . . . . . Flight . | . . . . . . . . . Utility 30 | 2 2 6 . . . 13 3 4 Device 17 | 1 . 5 . . . 7 3 1 Storage 4 | 1 2 . . . . 1 . . Processor 4 | . . . . . . 3 . 1 Hackware 1 | . . . . . . . . 1 Protection 4 | . . 1 . . . 2 . 1 Artifact . | . . . . . . . . . Weapon 19 | 2 2 3 . . . 6 4 2 Energy Gun 11 | 1 2 2 . . . 3 2 1 Energy Cannon 2 | . . . . . . 1 1 . Ballistic Gun 2 | 1 . 1 . . . . . . Ballistic Cannon . | . . . . . . . . . Launcher 3 | . . . . . . 1 1 1 Special Weapon . | . . . . . . . . . Impact Weapon . | . . . . . . . . . Slashing Weapon . | . . . . . . . . . Piercing Weapon . | . . . . . . . . . Special Melee Weapon 1 | . . . . . . 1 . . Unidentified Prototypes 6 | . 1 1 . . . 1 3 . Parts Lost 37 | . 1 4 . . . 18 6 8 Power 6 | . . . . . . 2 1 3 Propulsion 13 | . . 2 . . . 7 2 2 Utility 12 | . . 2 . . . 6 3 1 Weapon 6 | . 1 . . . . 3 . 2 Highest Loss Streak 10 | . 1 2 . . . 10 2 5 To Critical Strikes . | . . . . . . . . . Average Backups 21 | 3 11 23 25 24 24 21 22 21 Power . | . 1 1 1 1 1 . . . Propulsion 3 | 1 2 4 5 4 4 2 3 4 Utility 7 | . 4 7 9 8 9 8 8 8 Weapon 7 | . 2 9 9 9 9 8 7 7 Tool/Special . | . . . . . . . . . Unused Backups 57 | . 7 16 . 1 . 12 4 17 Power 2 | . 2 . . . . . . . Propulsion 9 | . . 4 . . . 2 . 3 Utility 16 | . 2 3 . . . 2 1 8 Weapon 28 | . 3 8 . 1 . 8 3 5 Tool/Special 2 | . . 1 . . . . . 1 Average Slot Usage (%) 97 | . 99 98 100 100 100 96 99 87 Engine 6 | . 14 11 11 11 11 2 . . Core 4 | . . . . . . 6 8 10 Treads 13 | . 27 10 11 11 11 9 11 14 Wheel 15 | . . 21 22 22 22 16 15 8 Device 18 | . 14 20 22 22 22 17 18 20 Storage 11 | . 14 11 11 11 11 10 17 7 Processor 5 | . . . . . . 13 9 7 Energy Gun 16 | . 17 21 22 22 22 10 14 14 Energy Cannon 2 | . . . . . . 7 3 . Ballistic Gun 1 | . 10 . . . . . . . Peak Build Rating 51 | 7 16 22 22 23 23 35 40 51 Average Rating 26 | 5 9 20 22 22 23 29 36 46 On Entrance 20 | . 7 16 22 22 23 23 34 40 Naked Turns . | . . . . . . . . . Heaviest Build 106 | 15 95 98 98 98 98 103 101 106 Greatest Support 40 | 40 40 26 22 22 22 40 28 28 Greatest Overweight (x) 9 | 3 9 9 4 4 4 9 8 4 Average Overweight (x) 3 | . . 3 4 4 4 3 3 3 Largest Inventory Capacity 25 | 8 25 25 25 25 25 25 25 25 Average Capacity 23 | 7 15 25 25 25 25 25 25 25 Most Carried 25 | 4 19 25 25 25 25 25 25 25 Average Carried 22 | 3 11 23 25 24 25 22 24 24 Final Capacity 25 | 8 25 25 25 25 25 25 25 25 Final Carried 25 | 4 19 25 25 25 25 25 25 23 Class Distribution -------------------- 78% | Mutant 21% | Scavenger-Mutant Dominant Class ---------------- Mutant | -10/Materials Mutant | -9/Materials Mutant | -9/Mines Mutant | -9/Exiles Mutant | -8/Mines Scavenger-Mutant | -8/Materials Mutant | -8/Storage Scavenger-Mutant | -7/Factory Resources | -11 -10 -9 -9 -9 -8 -8 -8 -7 ----------- Run | Yrd Mat Mat Min Exi Min Mat Sto Fac Matter Collected 1658 | 289 412 254 . . . 394 176 133 Remotely . | . . . . . . . . . Salvage Created 6248 | 85 485 1991 123 . . 1335 1366 863 Parts 316 | 8 24 109 9 . . 52 70 44 Haulers Intercepted 16 | . 2 5 . . . 4 4 1 Recyclers Shooed 7 | . 1 2 1 . . . . 3 Parts Field Recycled . | . . . . . . . . . Retrieved Matter . | . . . . . . . . . Parts Self-Destructed . | . . . . . . . . . Prevented . | . . . . . . . . . Kills | -11 -10 -9 -9 -9 -8 -8 -8 -7 ------- Run | Yrd Mat Mat Min Exi Min Mat Sto Fac Combat Hostiles Destroyed 116 | . 10 36 6 . . 27 24 13 Guns 82 | . 10 31 6 . . 10 19 6 Cannons 13 | . . . . . . 9 4 . AOE 14 | . . . . . . 7 . 7 Classes Destroyed 16 | 1 5 4 1 . . 4 . 1 Worker 11 | . . 5 . . . 3 1 2 Builder 4 | . . 1 . . . . . 3 Tunneler 5 | 4 . . . . . . . 1 Hauler 16 | . 2 5 . . . 4 4 1 Recycler 9 | . . 4 . . . . . 5 Mechanic 2 | . . . . . . 2 . . Operator 4 | . 1 1 . . . 1 1 . Watcher 5 | . 1 4 . . . . . . Swarmer 23 | . 3 9 4 . . 1 3 3 Grunt 61 | . 7 18 1 . . 18 10 7 Brawler 3 | . . . 1 . . 1 1 . Duelist 2 | . . . . . . 1 1 . Protector 1 | . . . . . . 1 . . Sentry 22 | . . 9 . . . 3 9 1 Specialist 2 | . . . . . . 2 . . Programmer 2 | . . . . . . . . 2 Best Kill Streak 11 | 4 3 4 6 . . 11 5 11 Combat Bots Only 9 | . 3 4 6 . . 9 4 5 Max Kills in Single Turn 3 | 1 1 2 1 . . 2 1 3 Gunslinging 1 | . . 1 . . . . . . Exploded 2 | . . . . . . 2 . 2 Melee . | . . . . . . . . . Uniques/NPCs Destroyed . | . . . . . . . . . Combat | -11 -10 -9 -9 -9 -8 -8 -8 -7 -------- Run | Yrd Mat Mat Min Exi Min Mat Sto Fac Hostile Shots Fired 662 | . 67 141 15 . . 193 89 157 Missed 201 | . 15 48 4 . . 63 21 50 Hits 461 | . 52 93 11 . . 130 68 107 Melee 3 | . . . 2 . . . 1 . Projectile 458 | . 52 93 9 . . 130 67 107 Critical Strikes 14 | . 2 5 . . . 4 2 1 Damage Taken 5645 | . 527 1029 117 . 13 1828 791 1340 Core 848 | . 74 176 7 . 3 342 147 99 Absorbed by Shields 769 | . . 182 46 . 7 144 291 99 Redirected to Shielding 6 | . . 6 . . . . . . Regen/Repaired (Parts) 167 | . . 125 . . . 42 . . Core Remaining (%) 58 | 100 70 . . . 53 . 11 . Volleys Fired 434 | 7 60 137 9 . . 85 86 50 Largest 2 | 2 2 2 2 . . 2 2 2 Hottest 133 | 70 112 121 121 . . 133 123 116 Shots Fired 823 | 14 118 267 18 . . 161 172 73 Gun 694 | 14 118 267 18 . . 83 137 57 Cannon 100 | . . . . . . 65 35 . Launcher 29 | . . . . . . 13 . 16 Special . | . . . . . . . . . Kinetic 61 | 7 54 . . . . . . . Thermal 733 | 7 64 267 18 . . 148 172 57 Explosive 29 | . . . . . . 13 . 16 Electromagnetic . | . . . . . . . . . Robot Hit Streak 26 | 5 12 26 5 . . 16 22 18 Robot Miss Streak 12 | 1 4 12 6 . . 4 2 2 Penetration Max . | . . . . . . . . . Secondary Targets 9 | . 2 3 3 . . . . 1 Max Gunslinging Chain 1 | . 1 1 1 . . . . 1 Shots Hit Robots 596 | 9 73 191 16 . . 131 116 60 Core Hits 367 | 4 24 106 18 . . 117 45 53 Critical Kills . | . . . . . . . . . Critical Parts Destroyed . | . . . . . . . . . Critical Strikes 39 | 2 5 16 1 . . 2 10 3 Burn 39 | 2 5 16 1 . . 2 10 3 Melee Attacks 1 | . . . . . . 1 . . Impact . | . . . . . . . . . Slashing . | . . . . . . . . . Piercing . | . . . . . . . . . Sneak Attacks . | . . . . . . . . . Combat Hostiles . | . . . . . . . . . Follow-up Attacks . | . . . . . . . . . Damage Inflicted 13085 | 130 1028 3367 305 . 34 3277 2370 2574 Guns 8673 | 130 1022 3241 264 . . 1274 1837 905 Cannons 1482 | . . . . . . 987 495 . Explosions 2592 | . . . . . . 944 . 1648 Melee . | . . . . . . . . . Ramming 338 | . 6 126 41 . 34 72 38 21 Kinetic 534 | 69 465 . . . . . . . Thermal 9621 | 61 557 3241 264 . . 2261 2332 905 Explosive 2592 | . . . . . . 944 . 1648 Electromagnetic . | . . . . . . . . . Impact . | . . . . . . . . . Slashing . | . . . . . . . . . Piercing . | . . . . . . . . . Highest Corruption 6 | . . . . . . 2 6 . Average Corruption 2 | . . . . . . 2 3 . Corruption Purged . | . . . . . . . . . Corruption Blocked . | . . . . . . . . . Effects 62 | . . . . . . 33 29 . Message Errors 15 | . . . . . . 11 4 . Matter Fused 11 | . . . . . . 5 6 . Heat Flow Errors 6 | . . . . . . 3 3 . Energy Discharges 6 | . . . . . . 3 3 . Parts Rejected 2 | . . . . . . 1 1 . Parts Fused 1 | . . . . . . . 1 . Data Loss (minor) 11 | . . . . . . 5 6 . Data Loss (major) 4 | . . . . . . 1 3 . Misfires 2 | . . . . . . 1 1 . Alerts 2 | . . . . . . 2 . . Weapon Failures 2 | . . . . . . 1 1 . Overload Shots . | . . . . . . . . . Overflow Damage 249 | . . 42 . . . 61 . 146 Projectiles . | . . . . . . . . . Explosions 189 | . . . . . . 43 . 146 Melee 60 | . . 42 . . . 18 . . Knockbacks 2 | . 1 . . . . . 1 . Impact 2 | . 1 . . . . . 1 . Kinetic . | . . . . . . . . . Secondary . | . . . . . . . . . Self-Inflicted Damage 473 | . 1 62 20 . 16 124 18 232 Shots 12 | . . . . . . 4 . 8 Rammed 23 | . 2 5 3 . 4 4 2 3 Targets Rammed 23 | . 2 5 3 . 4 4 2 3 Kicked . | . . . . . . . . . Crushed . | . . . . . . . . . Highest Temperature 219 | 27 219 207 . . . 189 200 84 Average Temperature 40 | 11 39 47 . . . 43 35 21 Received Heat Transfer 2016 | . 189 413 8 . . 789 324 293 Effects 3 | . . 3 . . . . . . Interference 3 | . . 3 . . . . . . Siege Activations . | . . . . . . . . . Martial Activations . | . . . . . . . . . Shielding Activations . | . . . . . . . . . Robots Disrupted . | . . . . . . . . . Combat Hostiles . | . . . . . . . . . Robots Corrupted 1 | . . 1 . . . . . . Combat Hostiles . | . . . . . . . . . Parts Fried 3 | . . 3 . . . . . . Impact Corruptions 3 | . . 2 . . . 1 . . Robots Melted 7 | . . 5 . . . 1 1 . Combat Hostiles 7 | . . 5 . . . 1 1 . Parts Melted 34 | 1 . 11 1 . . 4 16 1 Heat Transferred 21027 | 333 1850 7337 508 . . 3784 5254 1961 Parts Sabotaged . | . . . . . . . . . Parts Stolen . | . . . . . . . . . Parts Stripped . | . . . . . . . . . Power Chain Reactions . | . . . . . . . . . Alert | -11 -10 -9 -9 -9 -8 -8 -8 -7 ------- Run | Yrd Mat Mat Min Exi Min Mat Sto Fac Maximum Alert Level 2 | . . 1 . . . 2 1 1 Low Security (%) 71 | 100 100 44 100 . 100 76 65 93 Level 1 28 | . . 55 . . . 22 34 6 Level 2 . | . . . . . . . . . Level 3 . | . . . . . . . . . Level 4 . | . . . . . . . . . Level 5 . | . . . . . . . . . High Security . | . . . . . . . . . Max Security . | . . . . . . . . . Peak Influence 407 | 10 85 359 180 . . 407 308 330 Initial 131 | . . 1 110 . . . 62 131 Average 137 | 1 19 215 109 . . 153 146 50 Influence Increases 3894 | 20 314 1138 140 . . 971 786 525 Destroy 0b10 Robot/C 2300 | . 200 720 120 . . 520 480 260 Destroy 0b10 Robot/NC 285 | 20 20 100 . . . 55 30 60 Destroy Leader 612 | . 56 218 20 . . 118 148 52 Successful Hack 140 | . 23 37 . . . 45 35 . Disable Machine 165 | . . 15 . . . 45 60 45 Anti-Garrison Action 150 | . . . . . . 150 . . Destroy Structure 107 | . . 3 . . . 23 3 78 Lose Combat Pursuer 135 | . 15 45 . . . 15 30 30 Influence Decreases 3605 | 20 308 860 372 52 . 822 645 526 Entered New Map 477 | . . 5 174 52 . . 87 159 Time Decay 2519 | 20 306 665 198 . . 535 498 297 Lost Part 307 | . 2 40 . . . 135 60 70 Lost Ally 2 | . . . . . . 2 . . Purge Threat 300 | . . 150 . . . 150 . . Squads Dispatched 28 | . 3 5 . . . 12 3 5 Investigation 7 | . 2 2 . . . 3 . . Extermination 1 | . . . . . . . . 1 Reinforcement 12 | . 1 3 . . . 4 2 2 Assault 2 | . . . . . . 2 . . Garrison 6 | . . . . . . 3 1 2 Intercept . | . . . . . . . . . Searches Triggered . | . . . . . . . . . Construction Impeded 1 | . . . . . . . . 1 Haulers Reinforced . | . . . . . . . . . Active Scanning Responses . | . . . . . . . . . Cargo Convoy Interrupts . | . . . . . . . . . Stealth | -11 -10 -9 -9 -9 -8 -8 -8 -7 --------- Run | Yrd Mat Mat Min Exi Min Mat Sto Fac Distress Signals 12 | . 1 4 . . . 3 2 2 Communications Jammed . | . . . . . . . . . Distress Signals . | . . . . . . . . . Times Spotted 167 | . 21 53 6 . . 29 34 24 Peak Tracking Total 5 | . 4 5 5 . . 5 4 5 Tactical Retreats 8 | . 1 2 . . . 1 2 2 Traps | -11 -10 -9 -9 -9 -8 -8 -8 -7 ------- Run | Yrd Mat Mat Min Exi Min Mat Sto Fac Traps Triggered 7 | . 1 1 . . . 1 3 1 Indirectly . | . . . . . . . . . Trap Hack Attempts . | . . . . . . . . . Triggered . | . . . . . . . . . Disarmed . | . . . . . . . . . Reprogrammed . | . . . . . . . . . Reused . | . . . . . . . . . Traps Extracted . | . . . . . . . . . Installed . | . . . . . . . . . Triggered . | . . . . . . . . . Machines | -11 -10 -9 -9 -9 -8 -8 -8 -7 ---------- Run | Yrd Mat Mat Min Exi Min Mat Sto Fac Machines Disabled 12 | . . 1 . . . 4 4 3 Max in Single Turn 1 | . . 1 . . . 1 1 1 Garrison Access 2 | . . . . . . 1 1 . Machines Repaired . | . . . . . . . . . Machines Dismantled . | . . . . . . . . . Machines Sabotaged . | . . . . . . . . . Overloaded Fab Kills . | . . . . . . . . . Hacking | -11 -10 -9 -9 -9 -8 -8 -8 -7 --------- Run | Yrd Mat Mat Min Exi Min Mat Sto Fac Machines Accessed 42 | . 7 11 . 2 1 10 9 2 Terminals 31 | . 6 9 . . 1 7 7 1 Fabricators 1 | . . . . . . . . 1 Repair Stations 2 | . . 1 . . . 1 . . Recycling Units 5 | . 1 1 . . . 2 1 . Scanalyzers . | . . . . . . . . . Garrison Access 1 | . . . . . . . 1 . Total Hacks 118 | . 19 26 . 5 3 31 28 6 Successful 63 | . 10 17 . 5 1 13 15 2 Failed 53 | . 8 8 . . 2 18 13 4 Catastrophic 5 | . 1 1 . . . . 1 2 Database Lockouts 2 | . 1 1 . . . . . . Manual 44 | . 7 14 . 1 . 8 11 3 Terminals 94 | . 18 23 . . 3 25 21 4 Fabricators 2 | . . . . . . . . 2 Repair Stations 6 | . . 2 . . . 4 . . Recycling Units 9 | . 1 1 . . . 2 5 . Scanalyzers . | . . . . . . . . . Garrison Access 2 | . . . . . . . 2 . Terminal Hacks 43 | . 7 11 . 5 1 9 9 1 Record 4 | . . . . 4 . . . . Robot Analysis 5 | . 1 1 . . . 1 2 . Prototype ID Bank 4 | . 2 1 . . . 1 . . Open Door 3 | . . . . . . . 3 . Level Access Points 1 | . . . . . . . . 1 Branch Access Points 3 | . . 2 . . . 1 . . Terminal Index 1 | . . . . . . 1 . . Alert Level 4 | . . 2 . . . . 2 . Unreport Threat 2 | . . 1 . . . 1 . . Locate Traps 6 | . 3 1 . . . 1 1 . Transport Status 2 | . . 1 . . . 1 . . Hauler Manifests 4 | . 1 1 . . . 1 1 . Registered Components 2 | . . 1 . . . 1 . . Zone Layout 1 | . . . . . 1 . . . Proto ID Catalog 1 | . . . . 1 . . . . Fabricator Hacks 1 | . . . . . . . . 1 Network Status 1 | . . . . . . . . 1 Repair Station Hacks 4 | . . 2 . . . 2 . . Scan Component 2 | . . 1 . . . 1 . . Repair 2 | . . 1 . . . 1 . . Recycling Unit Hacks 5 | . 1 1 . . . 2 1 . Report Inventory 5 | . 1 1 . . . 2 1 . Scanalyzer . | . . . . . . . . . Garrison Access Hacks 1 | . . . . . . . 1 . Seal Access 1 | . . . . . . . 1 . Unauthorized Hacks 8 | . 2 3 . . . . 3 . Terminals 5 | . 2 3 . . . . . . Track 2 | . 1 1 . . . . . . Botnet 2 | . 1 1 . . . . . . Disrupt 1 | . . 1 . . . . . . Fabricators . | . . . . . . . . . Repair Stations . | . . . . . . . . . Recycling Units 3 | . . . . . . . 3 . Monitor 1 | . . . . . . . 1 . Reject 1 | . . . . . . . 1 . Mask 1 | . . . . . . . 1 . Scanalyzers . | . . . . . . . . . Garrison Access . | . . . . . . . . . Data Cores Recovered 1 | . . . . . . 1 . . Used 1 | . . . . . . 1 . . Hacking Detections 27 | . 5 7 . . 1 5 7 2 Full Trace Events 4 | . 1 1 . . . 1 1 . Feedback Events . | . . . . . . . . . Feedback Blocked . | . . . . . . . . . Robot Schematics Acquired . | . . . . . . . . . Robots Built . | . . . . . . . . . Authchips . | . . . . . . . . . Time . | . . . . . . . . . Total Robot Build Rating . | . . . . . . . . . Part Schematics Acquired . | . . . . . . . . . Parts Built . | . . . . . . . . . Authchips . | . . . . . . . . . Time . | . . . . . . . . . Total Part Build Rating . | . . . . . . . . . Parts Repaired 2 | . . 1 . . . 1 . . Time 76 | . . 26 . . . 50 . . Parts Recycled . | . . . . . . . . . Recycled Matter . | . . . . . . . . . Retrieved Matter . | . . . . . . . . . Retrieved Components . | . . . . . . . . . Parts Scanalyzed . | . . . . . . . . . Part Schematics Acquired . | . . . . . . . . . Parts Damaged . | . . . . . . . . . Bothacking | -11 -10 -9 -9 -9 -8 -8 -8 -7 ------------ Run | Yrd Mat Mat Min Exi Min Mat Sto Fac Used RIF Installer . | . . . . . . . . . Robots Hacked 1 | . . . . . . 1 . . Non-combat 1 | . . . . . . 1 . . Combat . | . . . . . . . . . Robot Hacks Applied 1 | . . . . . . 1 . . check_alert 1 | . . . . . . 1 . . Relay Couplers Released 7 | . . . . . . 3 . 4 Machine Destruction 3 | . . . . . . 3 . . Programmers 4 | . . . . . . . . 4 Fabnet Peak Effective % . | . . . . . . . . . Robots Rewired . | . . . . . . . . . Allies Hacked . | . . . . . . . . . Hacks Repelled . | . . . . . . . . . Allies | -11 -10 -9 -9 -9 -8 -8 -8 -7 -------- Run | Yrd Mat Mat Min Exi Min Mat Sto Fac Total Allies 3 | . . . 3 . . . . . Largest Group 3 | . . . 3 3 3 2 . . Highest-Rated Group 40 | . . . 40 40 40 24 . . Highest-Rated Ally 16 | . . . 16 16 16 16 . . Total Orders . | . . . . . . . . . Ally Attacks 4 | . . . . . 2 2 . . Total Damage 30 | . . . . . 30 . . . Kills . | . . . . . . . . . Allies Corrupted . | . . . . . . . . . Allies Melted . | . . . . . . . . . Intel | -11 -10 -9 -9 -9 -8 -8 -8 -7 ------- Run | Yrd Mat Mat Min Exi Min Mat Sto Fac Active Infowar (turns) 3301 | 16 1120 699 . . . 1466 . . Optics 1466 | . . . . . . 1466 . . Seismic 1835 | 16 1120 699 . . . . . . Robot Analysis Total 5 | . 1 1 . . . 1 2 . Derelict Logs Recovered 1 | . . . 1 . . . . . Drone Launches . | . . . . . . . . . Drone Recoveries . | . . . . . . . . . Exploration | -11 -10 -9 -9 -9 -8 -8 -8 -7 ------------- Run | Yrd Mat Mat Min Exi Min Mat Sto Fac Turns Passed 9390 | 129 1120 2722 404 327 56 2276 1325 1031 Spaces Moved 5119 | 58 540 1538 257 223 35 1335 570 563 Core 10 | 10 . . . . . . . . Treads 573 | 48 520 . . . . 4 1 . Legs . | . . . . . . . . . Wheels 4536 | . 20 1538 257 223 35 1331 569 563 Hover . | . . . . . . . . . Flight . | . . . . . . . . . Fastest Speed 50 | 50 160 135 145 145 145 130 135 145 Average Speed 145 | 162 162 140 145 145 145 139 153 145 Slowest Speed 480 | 200 215 215 145 145 145 320 480 145 Overloaded Moves . | . . . . . . . . . Propulsion Burnouts . | . . . . . . . . . Robots Hopped . | . . . . . . . . . Potential Cave-ins . | . . . . . . . . . Cave-ins Triggered . | . . . . . . . . . Exploration Rate (%) 56 | 4 86 92 67 59 11 86 82 17 Regions Visited 8 Branch Regions 4 Pre-discovered Areas 2 | . . . 1 1 . . . . Known Exits Taken 2 | . . 1 . . . 1 . . Unknown Exits Taken 6 | 1 1 . 1 1 1 . 1 . Scrap Searched 1 | . . . 1 . . . . . Spaces Dug . | . . . . . . . . . Terrain Destroyed 135 | . . . . . . 21 . 114 Melee . | . . . . . . . . . Projectile . | . . . . . . . . . AOE 135 | . . . . . . 21 . 114 Terrain Rammed . | . . . . . . . . . Walls Destroyed . | . . . . . . . . . Machines Disabled . | . . . . . . . . . Actions | -11 -10 -9 -9 -9 -8 -8 -8 -7 --------- Run | Yrd Mat Mat Min Exi Min Mat Sto Fac Total 6278 | 75 670 1850 269 228 38 1596 848 704 Wait 426 | . 31 87 1 . . 84 156 67 Move 5111 | 57 539 1537 256 222 34 1334 569 563 Hop . | . . . . . . . . . Pick Up 108 | 4 23 34 . 2 . 34 8 3 Fast Attach 26 | 7 . 3 . . . 7 6 3 Attach 29 | . 1 5 . . . 15 4 4 Detach 2 | . . . . . . 1 . 1 Swap 39 | . 5 12 . 1 . 10 6 5 Drop 79 | . 9 30 . 3 . 21 11 5 Fire 434 | 7 60 137 9 . . 85 86 50 Melee 1 | . . . . . . 1 . . Ram 22 | . 1 5 3 . 4 4 2 3 Kick . | . . . . . . . . . Crush 1 | . 1 . . . . . . . Escape Stasis . | . . . . . . . . . Rewire . | . . . . . . . . . Trap . | . . . . . . . . . Miscellaneous . | . . . . . . . . . Route ------- -11/Scrapyard -10/Materials (discovered 3 exits: *Mat x2 / [*Min]) -9/Materials (discovered 5 exits: *Mat x3 / *Min x2) -9/Mines (discovered 2 exits: *Mat / *Exi) -9/Exiles -8/Mines -8/Materials (discovered 4 exits: *Fac x3 / *Sto) -8/Storage -7/Factory (discovered 4 exits: *Fac x4) History --------- Turn | Location | Event 34 | -11/Scrapyard | Discovered new exit (range 16) 130 | -11/Scrapyard | Entered Materials 285 | -10/Materials | Central database locked down 313 | -10/Materials | Build established: Mutant 508 | -10/Materials | Discovered new exit (range 16) 767 | -10/Materials | Discovered new exit (range 12) 1182 | -10/Materials | Discovered new exit (range 16) 1250 | -10/Materials | Entered another Materials area 1250 | -9/Materials | Evolved 2 slots: Propulsion x1, Utility x1 1346 | -9/Materials | Central database locked down 1721 | -9/Materials | Identified exit to Mines 1866 | -9/Materials | Repaired Lgt. Treads 2140 | -9/Materials | Discovered new exit (range 9) 3228 | -9/Materials | Discovered new exit (range 16) 3405 | -9/Materials | Discovered new exit (range 16) 3972 | -9/Materials | Entered Mines 3973 | -9/Mines | Learned location of Storage (-8) 3988 | -9/Mines | Met a Derelict bent on vengeance 4086 | -9/Mines | Discovered new exit (range 13) 4122 | -9/Mines | Learned Materials terminal intel 4199 | -9/Mines | Assisted by bots powering up and referring to "LRC-V3" 4369 | -9/Mines | Deemed a non-threat by the Exiles lab entrance 4369 | -9/Mines | Discovered new exit (range 5) 4376 | -9/Mines | Entered Exiles 4376 | -9/Exiles | Accompanied by 3 allies 4411 | -9/Exiles | Met 8R-AWN 4436 | -9/Exiles | Met EX-HEX 4477 | -9/Exiles | Met EX-BIN 4494 | -9/Exiles | Aligned with FarCom system 4495 | -9/Exiles | Given EX-Vault access code 4529 | -9/Exiles | Opened EX-Vault 4540 | -9/Exiles | Found Firepult 4584 | -9/Exiles | Warned to stay clear of 0b10 Research branches 4637 | -9/Exiles | Learned location of Zion (-7) 4686 | -9/Exiles | Discovered new exit (range 10) 4703 | -9/Exiles | Left Exiles lab with Firepult 4703 | -9/Exiles | Entered Mines 4703 | -8/Mines | Accompanied by 3 allies 4737 | -8/Mines | Discovered new exit (range 16) 4759 | -8/Mines | Entered Materials 4759 | -8/Materials | Accompanied by 2 allies 4759 | -8/Materials | Evolved 2 slots: Utility x2 4760 | -8/Materials | Loaded intel: 12 terminal locations 4762 | -8/Materials | Discovered new exit (range 5) 5058 | -8/Materials | Identified exit to Storage 5116 | -8/Materials | Garrison activated, responded to threat 5205 | -8/Materials | Lost 10 parts (1p3n4u2w) 5363 | -8/Materials | Lost 3 parts (2n1u) 5389 | -8/Materials | Core integrity fell below 50% 5424 | -8/Materials | Destroyed 9 combat bots 5425 | -8/Materials | Lost 3 parts (1p1u1w) 5697 | -8/Materials | Met 7R-MNS 5726 | -8/Materials | Build established: Scavenger-Mutant 5816 | -8/Materials | Discovered new exit (range 19) 6238 | -8/Materials | Repaired Remote Shield? 6335 | -8/Materials | Discovered new exit (range 8) 6658 | -8/Materials | Discovered new exit (range 20) 7035 | -8/Materials | Build established: Mutant 7035 | -8/Materials | Entered Storage 7115 | -8/Storage | Garrison activated, responded to threat 7338 | -8/Storage | Found Prototype Launcher 7338 | -8/Storage | Identified Gui. Missile Launcher 7851 | -8/Storage | Core integrity fell below 20% 8310 | -8/Storage | Discovered new exit (range 15) 8360 | -8/Storage | Entered Factory 8360 | -7/Factory | Evolved 2 slots: Power x1, Propulsion x1 8388 | -7/Factory | Identified exit to Factory 8678 | -7/Factory | Build established: Scavenger-Mutant 9229 | -7/Factory | Build established: Mutant 9242 | -7/Factory | Garrison activated, responded to threat 9391 | -7/Factory | Self-destructed Last Messages --------------- 09369_ U-05 Engineer builds a Wall. 09370_ U-05 Engineer lays Concrete. 09373_ K-01 Serf collects debris. 09373_ U-05 Engineer lays Concrete. 09374_ U-05 Engineer builds a Wall. 09374_ U-05 Engineer lays Concrete. 09376_ K-01 Serf collects debris. 09377_ Lgt. Nuclear Core destroyed. 09377_ U-05 Engineer builds a Wall. 09379_ K-01 Serf collects debris. 09380_ U-05 Engineer builds a Wall. 09384_ U-05 Engineer lays Concrete. 09385_ U-05 Engineer builds a Wall. 09386_ R-06 Scavenger collects Terrain Scan Processor. 09387_ U-05 Engineer destroyed. 09388_ R-06 Scavenger collects Wheel. 09389_ K-01 Serf collects debris. 09389_ Arm. Huge Wheel destroyed. 09391_ R-06 Scavenger collects Com. Wheel. Map ----- +----------------------------------------------------+ | """ #?? ? ??????????????????????????????????????? | | #? ? ??????????????????????????????????????? | | """ # ??????????????????????????????????????? | | #!! "??? ????????? "????????????????????? | | """ #!! "?? !! ???????? "????????????????????? | | #! ?? !! ??????? ????????????????????? | | # """ """ !! ??????? ????????????????????? | | # """ """ ?#####+#####????????????????? | | # """ """ ## #????????????????? | | # ########?????????? | | # """ """ """ ????????? | | +#### """ """ """ " = ????????? | | """ """ """ "T ""????????? | | ""????????? | | "" "" "" ??????????? | | ! ""G"" # "Y ????????? | | ############## #???" ????????? | | #?????????######%#######??? [ ?????????? | | #?????????# # g# ##??????! ?????????? | | ########+#?????????# #######???w ??????????? | | #?????????# #### ##?? ??????????? | | ########??# Yr# #?? ???????????? | | [ # #??# r # % ###Y#######?????? | | # """ #???# #!%!# # ?????? | | "" """" # """ #???# % # # " """??????? | | "" """" # """ #######%#@## + " """"?????? | | "" """" # # # #k## #% " """" ????? | | "" """" # """ # ###m# [ #[% " """" #?? | | "" """" + """ + " u####+### #?? | | "" """" # """ # !###k## ######+#######?? | | # # | #?# ## | | %% # """ #######?# u | | ##+####### """ #???????# ## ! | | ## #?????# """ #???????#k## ################# | | %#?????# #???????# #### ##??????????? | | ##!#?????# #???????# #??# #######???????????? | | ?# ######################k#### #?????????????????? | | ## ####### # #?????????????????? | | / #%#???#########?###?? | | ##### # #???# ] ?? | | """ """ #???# # #???# ?? | | """ """ #???#! # #???# " " " " " #? | | """ """ #???# ! # ##### " " " " " #? | | #####% # # " " " " " #? | | ""T"" +!= # # " " " " " #? | | """"" #####! # + " " " " " #? | | #???# # # " " " " " #? | | #???# # # " " " " " #? | | ###### #???# # # " " " " " #? | | # # ##############+### # " " " " " #? | +----------------------------------------------------+ Best States ------------- Heat Dissipation 67 Energy Generation 23 Energy Capacity 440 Matter Stores 300 Matter Capacity 300 Sight Range 20 Terrain Scan Density 10 Armor Coverage 225 Resistance: KI 20 Propulsion Shielding 33 Evasion (%) 40 Targeting Accuracy 8 Target Analysis 5 Recoil Reduction 2 Defensive Hacking 10 Item Schematics ----------------- None Robot Schematics ------------------ None Fabricated ------------ Nothing Repaired ---------- Lgt. Treads | 10% | -9/Materials Remote Shield | 16% | -8/Materials Alien Tech Used ----------------- None Achievements -------------- None Challenges ------------ None Game ------ Seed FireSurveybotStrikerail Manual? 0 Play Time 00:59:10 Cumulative 204.0 hours Start 2025.10.13 @ 11:52:25 End 2025.10.14 @ 08:42:08 Sessions 3 Manual Loads 0 Difficulty Rogue Special Mode None Game No. 255 Rogue 255 Adventurer 0 Explorer 0 Win Type - Total 3 Types 3/0/0/0/0/0/0/0/0/0 Lore% 71 Gallery% 56 Achievement% 55 Wizard Run 0 Options --------- Layout 1 ASCII 0 Keyboard 1 Movement Numpad Keybinds 0 Fullscreen 2 Font 24/Smallcaps Map View 50x35 Zoom Use 0% Tactical HUD 1 Map Filters NONE Filters NONE Steam 1 RUN: f7ad0c57-e806-48d8-aa6f-b23dd5783ad8